bitfinex-derivatives/quotes_SOLF0:USTF0_20260314
["timestamp","ask_amount","ask_price","bid_price","bid_amount"]
[1773470354684,45.45484733,87.099,87.023,6.29837683]
[1773470354883,9.41484733,87.098,87.023,6.29837683]
[1773470355182,36.04,87.099,87.023,6.29837683]
[1773470355183,10.336,87.06,87.023,6.29837683]
[1773470356185,7.40625472,87.08,86.997,6.29217907]
[1773470356382,55.8501881,87.079,86.997,6.29217907]
[1773470356577,9.41484733,87.078,86.997,6.29217907]
[1773470356882,10.339,87.036,86.997,6.29217907]
[1773470358678,10.339,87.036,86.977,6.30999048]
[1773470359176,10.339,87.036,86.979,6.30935885]
[1773470359582,10.339,87.036,86.955,36.04]
[1773470359583,10.339,87.036,86.981,6.30935885]
[1773470360577,10.339,87.036,86.983,6.30871927]
[1773470366082,10.337,87.047,86.983,16.65371927]
[1773470366288,10.337,87.047,86.984,6.26911964]
[1773470368081,10.336,87.058,86.986,6.25269844]
[1773470368480,9.35688615,87.083,86.986,6.25269844]
[1773470368681,36.06,87.091,86.987,36.06]
[1773470368880,36.06,87.091,86.988,6.25269844]
[1773470369084,36.06,87.091,86.987,36.06]
[1773470369085,10.334,87.078,87.016,6.2501406]
[1773470370079,10.334,87.078,87.018,6.22452478]
[1773470370281,10.332,87.089,87.018,6.22452478]
[1773470370780,10.332,87.089,87.025,6.22452478]
[1773470370986,10.333,87.08,87.025,6.22452478]
[1773470376188,10.333,87.08,87.026,6.22222077]
[1773470376382,10.332,87.091,87.026,6.22222077]
[1773470377087,9.38199783,87.097,87.037,6.22386891]
[1773470377283,10.331,87.103,87.037,6.22386891]
[1773470377488,9.38669128,87.114,87.037,6.22386891]
[1773470377683,9.38669128,87.113,87.037,6.22386891]
[1773470377887,9.38669128,87.112,87.037,6.22386891]
[1773470378090,9.38669128,87.111,87.037,6.22386891]
[1773470378292,9.38669128,87.11,87.037,6.22386891]
[1773470378491,9.38669128,87.109,87.037,6.22386891]
[1773470378693,36.04,87.119,87.04,6.22394576]
[1773470378694,10.332,87.095,87.04,6.22394576]
[1773470380495,10.333,87.084,87.04,6.22394576]
[1773470381193,36.04,87.119,87.04,6.22394576]
[1773470381194,10.332,87.094,87.04,6.22394576]
[1773470383492,10.332,87.094,87.041,10.338]
[1773470383797,10.332,87.094,87.042,6.21880939]
[1773470384898,10.331,87.103,87.046,6.21857318]
[1773470385597,3.11492365,87.1,87.046,6.21857318]
[1773470387192,10.331,87.103,87.049,6.22344531]
[1773470387994,10.33,87.108,87.055,6.22345907]
[1773470388196,9.39232835,87.121,87.031,6.22345907]
[1773470388393,3.11492365,87.09,87.031,6.22345907]
[1773470389098,3.11492365,87.09,87.033,6.18351026]
[1773470389399,10.331,87.096,87.033,6.18351026]
[1773470390597,10.331,87.096,87.046,6.15558247]
[1773470391800,10.332,87.089,87.046,6.15558247]
[1773470392192,9.38953269,87.115,87.046,6.15558247]
[1773470392392,9.38953269,87.115,87.01,36.04]
[1773470392393,3.11492365,87.09,87.037,6.15554471]
[1773470393498,10.332,87.089,87.038,10.338]
[1773470393703,10.332,87.089,87.039,6.15392237]
[1773470395300,10.331,87.098,87.04,10.338]
[1773470395503,3.11492365,87.09,87.041,6.15867178]
[1773470396198,3.11492365,87.09,87.045,6.18398288]
[1773470397201,19.71953269,87.112,87.047,6.1856803]
[1773470397399,10.33,87.112,87.061,6.1856803]
[1773470397804,3.11492365,87.11,87.061,6.1856803]
[1773470399307,3.11492365,87.08,87.038,6.19486877]
[1773470399507,3.11492365,87.09,87.038,6.19486877]
[1773470400601,10.332,87.089,87.038,6.19486877]
[1773470400806,3.11492365,87.08,87.038,6.19486877]
[1773470401005,3.11492365,87.1,87.038,6.19486877]
[1773470401200,9.37705472,87.122,87.071,6.2081251]
[1773470401399,3.11492365,87.13,87.081,6.2081251]
[1773470401609,10.326,87.138,87.086,6.2081251]
[1773470401900,3.11492365,87.12,87.07,6.2101268]
[1773470402908,3.11492365,87.11,87.07,6.2101268]
[1773470403108,3.11492365,87.12,87.07,6.2101268]
[1773470403309,10.33,87.108,87.07,6.2101268]
[1773470403508,3.11492365,87.11,87.07,6.2101268]
[1773470403806,10.327,87.136,87.072,6.19151604]
[1773470404002,3.11492365,87.13,87.072,6.19151604]
[1773470404309,3.11492365,87.13,87.037,36.06]
[1773470404310,3.11492365,87.15,87.091,6.19151604]
[1773470404509,3.11492365,87.16,87.101,6.19151604]
[1773470404706,3.11492365,87.15,87.101,6.19151604]
[1773470405310,13.43992365,87.15,87.101,6.19151604]
[1773470406214,10.324,87.16,87.101,6.19151604]
[1773470406408,3.11492365,87.15,87.101,6.19151604]
[1773470406904,10.39534077,87.202,87.121,6.20379932]
[1773470407106,3.11492365,87.18,87.121,6.20379932]
[1773470407313,3.11492365,87.17,87.121,6.20379932]
[1773470408303,9.38240544,87.2,87.121,6.20379932]
[1773470408501,3.11492365,87.18,87.121,6.20379932]
[1773470409106,3.11492365,87.18,87.123,6.17844148]
[1773470409305,3.11492365,87.18,87.12,3.11492365]
[1773470409306,3.11492365,87.19,87.131,6.17844148]
[1773470410407,9.38240544,87.214,87.131,6.17844148]
[1773470410610,3.11492365,87.19,87.133,6.1763588]
[1773470411611,10.321,87.188,87.133,6.1763588]
[1773470412205,3.11492365,87.19,87.133,6.1763588]
[1773470412713,10.319,87.198,87.141,6.17914319]
[1773470412908,9.38240544,87.213,87.151,6.17643554]
[1773470413211,3.11492365,87.22,87.161,6.17643554]
[1773470413812,3.11492365,87.21,87.161,6.17643554]
[1773470414415,3.11492365,87.2,87.161,6.17643554]
[1773470415511,3.11492365,87.21,87.161,6.17643554]
[1773470416510,3.11492365,87.21,87.162,6.16821119]
[1773470416919,3.11492365,87.23,87.162,6.16821119]
[1773470417415,3.11492365,87.23,87.173,6.19877377]
[1773470417810,10.313,87.252,87.176,6.20050719]
[1773470418010,3.11492365,87.24,87.176,6.20050719]
[1773470418218,3.11492365,87.24,87.181,6.20050719]
[1773470418819,3.11492365,87.25,87.181,6.20050719]
[1773470419111,3.11492365,87.25,87.128,20.656]
[1773470419112,3.11492365,87.24,87.194,6.19086204]
[1773470419314,3.11492365,87.23,87.171,6.19086204]
[1773470419513,10.316,87.228,87.171,6.19086204]
[1773470420918,7.3954197,87.25,87.131,34.31]
[1773470421115,7.3954197,87.19,87.114,6.18524543]
[1773470421315,160.445,87.244,87.114,6.18524543]
[1773470421316,7.3954197,87.17,87.114,6.18524543]
[1773470421619,10.324,87.156,87.114,6.18524543]
[1773470423214,10.325,87.147,87.098,6.05433666]
[1773470423919,10.326,87.138,87.072,6.05433666]
[1773470424415,10.331,87.101,87.048,6.08523705]
[1773470424617,7.40982153,87.11,86.993,6.08523705]
[1773470425017,10.334,87.076,87.003,6.07606542]
[1773470425317,7.40982153,87.09,87.003,6.07606542]
[1773470426516,10.335,87.064,87.003,6.07606542]
[1773470426911,7.40982153,87.09,87.003,6.07606542]
[1773470427521,10.335,87.066,87.003,6.07606542]
[1773470428414,9.16592599,87.1,86.973,36.06]
[1773470428415,10.333,87.079,87.004,6.06931477]
[1773470428614,7.40982153,87.1,87.004,6.06931477]
[1773470429317,10.332,87.093,87.007,6.07862841]
[1773470430623,10.332,87.093,87.018,6.08814238]
[1773470431326,7.40982153,87.06,86.875,161.125]
[1773470431522,10.39534077,87.109,86.848,161.176]
[1773470431523,160.793,87.055,86.935,5.99208043]
[1773470431823,7.40982153,87.0,86.898,13.46780986]
[1773470432119,196.977,86.999,86.889,2.00068989]
[1773470432325,10.351,86.934,86.819,13.46407838]
[1773470432625,36.08,86.949,86.851,13.46407838]
[1773470432826,17.75782153,86.96,86.851,13.46407838]
[1773470433024,36.08,86.959,86.851,13.46407838]
[1773470433423,10.28417637,86.998,86.828,36.08]
[1773470433424,36.08,86.977,86.861,13.6251307]
[1773470433622,36.08,86.98,86.9,7.40982153]
[1773470433829,20.82954937,87.057,86.9,7.40982153]
[1773470433830,36.08,86.996,86.901,13.6251307]
[1773470434124,10.28417637,87.056,86.828,36.08]
[1773470434125,36.08,87.013,86.921,13.69013138]
[1773470434326,7.40982153,87.01,86.899,13.69013138]
[1773470434527,10.342,87.005,86.899,13.69013138]
[1773470434726,7.40982153,86.99,86.878,13.69013138]
[1773470434926,43.48982153,86.99,86.878,13.69013138]
[1773470435229,7.40982153,87.02,86.891,13.72613369]
[1773470435416,36.08,87.026,86.911,13.72613369]
[1773470435618,36.08,87.041,86.931,13.72613369]
[1773470435818,36.08,87.04,86.931,13.72613369]
[1773470436129,10.341,87.019,86.931,13.72613369]
[1773470436431,43.48982153,87.04,86.931,13.72613369]
[1773470436729,10.336,87.06,86.961,13.64662308]
[1773470436926,160.608,87.156,87.001,13.63687969]
[1773470437221,160.608,87.156,86.93,161.023]
[1773470437222,9.0784122,87.155,87.011,13.63687969]
[1773470437424,7.40982153,87.1,87.011,13.63687969]
[1773470437620,36.08,87.1,87.011,13.63687969]
[1773470441533,36.08,87.1,86.982,36.08]
[1773470441534,36.08,87.1,87.021,13.61836235]
[1773470442436,36.08,87.124,87.041,13.61348457]
[1773470442627,7.40982153,87.15,87.041,13.61348457]
[1773470442832,36.08,87.149,87.041,13.61348457]
[1773470443636,10.325,87.148,87.041,13.61348457]
[1773470444029,36.08,87.149,87.041,13.61348457]
[1773470444635,7.40982153,87.13,87.02,13.57557091]
[1773470444934,10.328,87.128,87.031,13.58501046]
[1773470445229,36.08,87.127,87.031,13.58501046]
[1773470445823,160.524,87.202,87.006,36.08]
[1773470445824,36.08,87.151,87.052,13.5837323]
[1773470446131,10.325,87.152,87.052,13.5837323]
[1773470446628,10.327,87.136,87.052,13.5837323]
[1773470446828,7.40982153,87.13,87.021,13.5837323]
[1773470447025,10.329,87.118,87.021,13.5837323]
[1773470447826,160.569,87.177,87.021,13.5837323]
[1773470447827,10.331,87.1,87.021,13.5837323]
[1773470448236,10.333,87.085,87.021,13.5837323]
[1773470449033,36.08,87.091,87.021,13.5837323]
[1773470449439,10.329,87.112,87.021,13.5837323]
[1773470449634,160.583,87.169,87.021,13.5837323]
[1773470449635,170.78738939,87.182,87.021,13.5837323]
[1773470449839,7.40982153,87.14,87.021,13.5837323]
[1773470450239,7.40982153,87.14,87.031,13.59864108]
[1773470450240,36.08,87.139,87.031,13.59864108]
[1773470451041,10.327,87.13,87.033,13.60548721]
[1773470451343,7.40982153,87.13,87.033,13.60548721]
[1773470451944,36.08,87.129,87.033,13.60548721]
[1773470452143,36.08,87.132,87.033,13.60548721]
[1773470453745,10.327,87.13,87.035,13.58166285]
[1773470454347,36.08,87.14,87.051,13.55635813]
[1773470455641,10.327,87.137,87.057,13.5574602]
[1773470456338,10.327,87.137,87.058,10.336]
[1773470456543,10.327,87.137,87.059,13.55413869]
[1773470460542,36.06,87.15,87.063,13.50773216]
[1773470460746,46.385,87.15,87.063,13.50773216]
[1773470461048,36.06,87.17,87.085,13.53774846]
[1773470461247,10.325,87.15,87.085,13.53774846]
[1773470461439,10.325,87.15,87.06,7.40982153]
[1773470461440,43.46982153,87.17,87.066,13.53774846]
[1773470461640,10.328,87.128,87.066,13.53774846]
[1773470462349,36.06,87.143,87.043,13.53730206]
[1773470462545,36.06,87.143,86.975,20.692]
[1773470462546,7.40982153,87.13,87.024,13.53730206]
[1773470462747,7.40982153,87.13,87.028,13.53730206]
[1773470463049,7.40982153,87.13,87.027,10.339]
[1773470463050,36.06,87.143,87.041,13.48885957]
[1773470463349,36.06,87.143,87.059,13.48885957]
[1773470464350,9.2054635,87.159,87.059,13.48885957]
[1773470464550,10.328,87.125,87.06,10.336]
[1773470464744,10.328,87.125,87.061,13.50215099]
[1773470465055,7.40982153,87.14,87.061,13.50215099]
[1773470465648,10.33,87.106,87.038,13.49047251]
[1773470466442,7.40982153,87.12,87.038,13.49047251]
[1773470467148,10.332,87.09,87.038,13.49047251]
[1773470467547,7.40982153,87.12,87.018,13.48857231]
[1773470467750,10.332,87.09,87.018,13.48857231]
[1773470467946,7.40982153,87.12,87.018,13.48857231]
[1773470468550,7.40982153,87.1,87.018,13.48857231]
[1773470468942,10.333,87.081,87.018,13.48857231]
[1773470469851,10.332,87.092,87.019,13.48824998]
[1773470470744,10.33,87.105,87.02,7.40982153]
[1773470470950,36.08,87.106,87.034,13.48987984]
[1773470471951,36.08,87.131,87.034,13.48987984]
[1773470472452,9.23454726,87.139,87.034,13.48987984]
[1773470472749,9.23454726,87.139,87.02,7.40982153]
[1773470472750,10.33,87.107,87.043,13.49455819]
[1773470473545,10.33,87.107,87.046,10.337]
[1773470473744,10.33,87.107,87.047,13.49397583]
[1773470474155,10.329,87.118,87.049,13.4494236]
[1773470474454,7.40982153,87.13,87.021,13.4494236]
[1773470474752,7.40982153,87.13,87.025,13.4494236]
[1773470475545,10.331,87.098,87.033,13.44840242]
[1773470475753,7.40982153,87.13,87.033,13.44840242]
[1773470476544,10.33,87.109,87.046,10.337]
[1773470476855,7.40982153,87.15,87.047,13.44723377]
[1773470477056,36.08,87.149,87.047,13.44723377]
[1773470477259,45.317141,87.149,87.047,13.44723377]
[1773470477950,45.317141,87.149,87.04,7.40982153]
[1773470477951,45.317141,87.149,87.058,13.43546819]
[1773470478150,9.237141,87.148,87.058,13.43546819]
[1773470478355,9.237141,87.147,87.058,13.43546819]
[1773470478553,9.237141,87.146,87.058,13.43546819]
[1773470478758,9.237141,87.145,87.058,13.43546819]
[1773470478954,9.237141,87.144,87.058,13.43546819]
[1773470479156,10.33,87.11,87.058,13.43546819]
[1773470480260,10.329,87.121,87.06,13.4353694]
[1773470480459,9.31506091,87.12,87.06,13.4353694]
[1773470480661,9.31506091,87.119,87.06,13.4353694]
[1773470480863,9.31506091,87.118,87.06,13.4353694]
[1773470481160,9.31506091,87.117,87.06,13.4353694]
[1773470481360,9.31506091,87.116,87.06,13.4353694]
[1773470481561,10.329,87.114,87.062,13.43397946]
[1773470481755,9.31506091,87.113,87.062,13.43397946]
[1773470481956,9.31506091,87.112,87.062,13.43397946]
[1773470482154,9.31506091,87.111,87.062,13.43397946]
[1773470482354,9.31506091,87.11,87.064,13.43148212]
[1773470482556,9.31506091,87.109,87.064,13.43148212]
[1773470482864,10.329,87.114,87.064,13.43148212]
[1773470483159,10.33,87.11,87.064,13.43148212]
[1773470483462,9.3417078,87.109,87.047,13.43168039]
[1773470483655,9.3417078,87.108,87.047,13.43168039]
[1773470483860,9.3417078,87.107,87.047,13.43168039]
[1773470484060,9.3417078,87.106,87.047,13.43168039]
[1773470484258,9.3417078,87.105,87.047,13.43168039]
[1773470484467,9.3417078,87.104,87.047,13.43168039]
[1773470484668,10.331,87.096,87.047,13.43168039]
[1773470484963,9.3417078,87.095,87.047,13.43168039]
[1773470485165,9.3417078,87.094,87.047,13.43168039]
[1773470485470,36.08,87.109,87.047,13.43168039]
[1773470485672,9.33857801,87.108,87.047,13.43168039]
[1773470485871,9.33857801,87.107,87.047,13.43168039]
[1773470486072,9.33857801,87.106,87.047,13.43168039]
[1773470486272,9.33857801,87.105,87.047,13.43168039]
[1773470486468,9.33857801,87.104,87.047,13.43168039]
[1773470486673,9.33857801,87.103,87.051,13.43288485]
[1773470486972,9.33857801,87.102,87.051,13.43288485]
[1773470487171,9.33857801,87.101,87.051,13.43288485]
[1773470487375,10.329,87.114,87.051,13.43288485]
[1773470487570,10.33,87.111,87.053,10.336]
[1773470487771,9.3421383,87.11,87.054,13.4270821]
[1773470487971,9.3421383,87.109,87.054,13.4270821]
[1773470488170,9.3421383,87.108,87.054,13.4270821]
[1773470488370,9.3421383,87.107,87.054,13.4270821]
[1773470488569,10.33,87.105,87.054,13.4270821]
[1773470488769,9.3421383,87.104,87.054,13.4270821]
[1773470488970,10.331,87.102,87.054,13.4270821]
[1773470489275,9.3421383,87.101,87.054,13.4270821]
[1773470489473,10.331,87.102,87.054,13.4270821]
[1773470489674,9.33849175,87.101,87.054,13.4270821]
[1773470489872,10.22738939,87.121,87.054,13.4270821]
[1773470490073,9.33849175,87.12,87.054,13.4270821]
[1773470490273,9.33849175,87.119,87.054,13.4270821]
[1773470490475,9.33849175,87.118,87.054,13.4270821]
[1773470490676,10.33,87.11,87.054,13.4270821]
[1773470490974,9.33849175,87.109,87.054,13.4270821]
[1773470491276,9.33849175,87.108,87.054,13.4270821]
[1773470491474,9.33849175,87.107,87.054,13.4270821]
[1773470491768,9.33849175,87.106,87.054,13.4270821]
[1773470491973,9.33849175,87.105,87.054,13.4270821]
[1773470492178,10.33,87.11,87.054,13.4270821]
[1773470492179,9.33849175,87.104,87.054,13.4270821]
[1773470492379,10.331,87.101,87.054,13.4270821]
[1773470492973,10.33,87.112,87.054,13.4270821]
[1773470493170,9.33913673,87.111,87.056,13.45495563]
[1773470493367,9.33913673,87.11,87.056,13.45495563]
[1773470493578,9.33913673,87.109,87.056,13.45495563]
[1773470493777,9.33913673,87.108,87.056,13.45495563]
[1773470494078,9.33913673,87.107,87.059,13.45640965]
[1773470494282,10.33,87.11,87.059,13.45640965]
[1773470494476,9.34480437,87.109,87.059,13.45640965]
[1773470494781,10.33,87.11,87.059,13.45640965]
[1773470494974,9.34477801,87.109,87.059,13.45640965]
[1773470495175,10.33,87.11,87.059,13.45640965]
[1773470495589,10.33,87.11,87.062,10.335]
[1773470495879,10.33,87.11,87.063,13.45642647]
[1773470496675,36.08,87.123,87.046,13.45655825]
[1773470496985,9.34503713,87.122,87.046,13.45655825]
[1773470497176,9.34503713,87.121,87.046,13.45655825]
[1773470497484,9.34503713,87.12,87.046,13.45655825]
[1773470497774,9.34503713,87.119,87.046,13.45655825]
[1773470497968,9.34503713,87.118,87.046,13.45655825]
[1773470498172,9.34503713,87.117,87.046,13.45655825]
[1773470498483,36.08,87.123,87.03,7.41353782]
[1773470498484,9.34503713,87.116,87.047,13.45756207]
[1773470498674,9.34503713,87.115,87.047,13.45756207]
[1773470498873,9.34503713,87.114,87.047,13.45756207]
[1773470499174,9.34503713,87.113,87.047,13.45756207]
[1773470499381,10.33,87.106,87.06,13.45755719]
[1773470499576,36.08,87.123,87.06,13.45755719]
[1773470499777,9.34473015,87.122,87.06,13.45755719]
[1773470499978,9.34473015,87.121,87.06,13.45755719]
[1773470500179,9.34473015,87.12,87.06,13.45755719]
[1773470500380,10.33,87.105,87.06,13.45755719]
[1773470502676,10.332,87.095,87.06,13.45755719]
[1773470503084,36.08,87.123,87.06,13.45755719]
[1773470503383,9.34628849,87.122,87.06,13.45755719]
[1773470503587,9.34628849,87.121,87.06,13.45755719]
[1773470503883,9.34628849,87.12,87.06,13.45755719]
[1773470504188,9.34628849,87.119,87.06,13.45755719]
[1773470504388,9.34628849,87.118,87.06,13.45755719]
[1773470504584,10.33,87.104,87.06,13.45755719]
[1773470506191,10.331,87.096,87.06,13.45755719]
[1773470507290,10.33,87.104,87.06,13.45755719]
[1773470507489,9.35791067,87.103,87.06,13.45755719]
[1773470507790,10.33,87.104,87.06,13.45755719]
[1773470507992,10.331,87.102,87.06,13.45755719]
[1773470508289,36.08,87.123,87.06,13.45755719]
[1773470508488,9.35808653,87.122,87.06,0.00055719]
[1773470508693,10.47498299,87.116,87.025,36.08]
[1773470508991,9.35808653,87.115,87.025,36.08]
[1773470509187,9.35808653,87.114,87.025,36.08]
[1773470509394,9.35808653,87.113,87.025,36.08]
[1773470509592,10.332,87.093,87.04,3.1152274]
[1773470510593,10.332,87.093,87.047,6.72232488]
[1773470511088,10.333,87.083,87.047,6.72232488]
[1773470511393,3.1152274,87.1,87.047,6.72232488]
[1773470511592,9.35745034,87.099,87.047,6.72232488]
[1773470511791,9.35745034,87.098,87.047,6.72232488]
[1773470511992,9.35745034,87.097,87.047,6.72232488]
[1773470512195,9.35745034,87.096,87.047,6.72232488]
[1773470512385,9.35745034,87.095,87.051,6.71963592]
[1773470512591,20.82954937,87.142,87.025,36.08]
[1773470512592,10.47498299,87.15,87.081,6.71963592]
[1773470512786,9.36279857,87.149,87.1,5.97674701]
[1773470512991,9.36279857,87.148,87.11,3.1152274]
[1773470513295,3.85748127,87.154,87.1,5.97674701]
[1773470513500,3.1152274,87.14,87.082,2.85993922]
[1773470513794,3.85748127,87.138,87.082,2.85993922]
[1773470513994,3.85748127,87.138,87.09,3.1152274]
[1773470514293,3.85748127,87.136,87.082,2.85993922]
[1773470514490,36.08,87.152,87.061,2.82134191]
[1773470514491,3.85748127,87.119,87.061,2.82134191]
[1773470514694,3.85748127,87.119,86.992,28.18562841]
[1773470514695,10.331,87.098,87.046,2.84540611]
[1773470514888,10.331,87.098,87.05,3.1152274]
[1773470515189,14.18748127,87.109,87.051,2.8301676]
[1773470515396,3.85748127,87.121,87.07,3.1152274]
[1773470515698,3.85748127,87.119,87.061,2.8301676]
[1773470515993,10.33,87.11,87.061,2.8301676]
[1773470517799,10.331,87.1,87.05,3.1152274]
[1773470518201,14.18848127,87.1,87.05,3.1152274]
[1773470518402,14.18948127,87.095,87.05,3.1152274]
[1773470518601,3.85748127,87.094,87.05,3.1152274]
[1773470519002,9.20078177,87.108,87.05,3.1152274]
[1773470519003,10.33,87.105,87.051,2.94260878]
[1773470519204,3.85748127,87.104,87.051,2.94260878]
[1773470520302,3.85748127,87.104,87.054,2.98313768]
[1773470520905,3.85748127,87.104,87.055,10.336]
[1773470521104,3.85748127,87.104,87.055,13.34163954]
[1773470521808,3.85748127,87.104,87.06,3.1152274]
[1773470522806,3.85748127,87.104,87.061,3.04991666]
[1773470523203,3.85748127,87.115,87.061,3.04991666]
[1773470523506,3.85748127,87.079,87.02,3.1152274]
[1773470524906,3.85748127,87.079,87.015,3.04990863]
[1773470524907,3.85748127,87.069,87.015,3.04990863]
[1773470525508,3.85748127,87.065,87.015,3.04990863]
[1773470527818,3.85748127,87.065,87.016,13.54949439]
[1773470528020,3.85748127,87.065,87.017,3.20849439]
[1773470529514,3.85748127,87.065,87.016,10.341]
[1773470529515,10.334,87.075,87.021,3.22857123]
[1773470530514,10.334,87.075,87.022,3.25138559]
[1773470531711,3.85748127,87.08,87.025,3.27289934]
[1773470532812,3.85748127,87.08,87.0,7.41966021]
[1773470532813,3.85748127,87.08,87.03,3.25595611]
[1773470533813,3.85748127,87.08,87.033,3.27464101]
[1773470534215,3.85748127,87.08,87.0,7.41966021]
[1773470534216,36.08,87.094,87.036,3.27465214]
[1773470534415,3.85748127,87.098,87.036,3.27465214]
[1773470535120,3.85748127,87.097,87.045,3.29372508]
[1773470536116,3.85748127,87.109,87.048,3.31248292]
[1773470537512,3.85748127,87.109,87.056,10.336]
[1773470538424,3.85748127,87.097,87.022,3.34455271]
[1773470538723,3.85748127,87.095,87.022,3.34455271]
[1773470538922,3.85748127,87.093,87.022,3.34455271]
[1773470539123,3.85748127,87.091,87.022,3.34455271]
[1773470539322,3.85748127,87.089,87.022,3.34455271]
[1773470539518,10.334,87.07,87.022,3.34455271]
[1773470539823,3.85748127,87.072,87.022,3.34455271]
[1773470540526,3.85748127,87.072,87.023,10.34]
[1773470542722,3.85748127,87.072,87.025,10.34]
[1773470543120,3.85748127,87.072,87.026,3.53035229]
[1773470544621,3.85748127,87.072,87.031,10.339]
[1773470545419,3.85748127,87.072,87.026,3.53035229]
[1773470546618,3.85748127,87.072,87.027,10.34]
[1773470547322,4.15959792,87.071,87.026,3.53035229]
[1773470549529,4.15959792,87.071,87.029,10.339]
[1773470553729,4.15959792,87.071,87.026,3.53035229]
[1773470553931,4.15959792,87.069,87.02,10.34]
[1773470554636,4.15959792,87.069,87.021,3.80128693]
[1773470554836,4.15959792,87.069,87.025,3.81629942]
[1773470556638,4.15959792,87.069,87.03,3.11664298]
[1773470556833,10.333,87.079,87.031,3.85154639]
[1773470557637,10.333,87.079,87.032,3.85719394]
[1773470558336,14.49259792,87.079,87.032,3.85719394]
[1773470558537,4.15959792,87.078,87.034,10.339]
[1773470559337,4.15959792,87.078,87.035,3.93850822]
[1773470560837,4.15959792,87.091,87.05,3.11664298]
[1773470562943,4.15959792,87.091,87.06,3.11664298]
[1773470563142,10.33,87.106,87.06,3.11664298]
[1773470563442,4.15959792,87.104,87.06,3.11664298]
[1773470566845,10.33,87.106,87.061,4.00708133]
[1773470567044,9.31125309,87.105,87.061,4.00708133]
[1773470567245,10.33,87.106,87.061,4.00708133]
[1773470567447,9.31148399,87.105,87.061,4.00708133]
[1773470567745,10.33,87.106,87.061,4.00708133]
[1773470567945,9.31148269,87.105,87.061,4.00708133]
[1773470568146,14.53415381,87.106,87.061,4.00708133]
[1773470568443,9.31147421,87.105,87.07,3.11664298]
[1773470568639,4.20415381,87.106,87.07,3.11664298]
[1773470569441,4.20415381,87.106,87.009,20.684]
[1773470569442,4.20415381,87.135,87.09,3.11664298]
[1773470569645,3.11664298,87.15,87.09,3.11664298]
[1773470569646,4.20415381,87.133,87.09,3.11664298]
[1773470569845,9.3130745,87.132,87.09,3.11664298]
[1773470570046,9.3130745,87.131,87.09,3.11664298]
[1773470570242,4.20415381,87.133,87.09,3.11664298]
[1773470570441,9.30819503,87.132,87.091,4.04471556]
[1773470570639,4.20415381,87.142,87.091,4.04471556]
[1773470570839,4.20415381,87.14,87.091,4.04471556]
[1773470571047,10.326,87.143,87.091,4.04471556]
[1773470571048,4.20415381,87.138,87.091,4.04471556]
[1773470571247,4.33229399,87.136,87.091,4.04471556]
[1773470572546,4.33229399,87.153,87.102,4.10432281]
[1773470572745,4.33229399,87.151,87.102,4.10432281]
[1773470573049,4.33229399,87.139,87.083,4.11860492]
[1773470573351,4.33229399,87.139,87.09,3.11664298]
[1773470573846,4.33229399,87.139,87.091,4.13032622]
[1773470575549,36.1,87.155,87.054,4.09998667]
[1773470575550,4.33229399,87.119,87.054,4.09998667]
[1773470575856,4.33229399,87.109,87.054,4.09998667]
[1773470576653,4.33229399,87.107,87.055,10.336]
[1773470578763,3.11664298,87.1,87.054,4.09998667]
[1773470579261,4.33229399,87.102,87.054,4.09998667]
[1773470580553,4.33229399,87.099,87.054,4.09998667]
[1773470580753,4.33229399,87.089,87.04,4.17490903]
[1773470581061,4.33229399,87.089,87.04,14.51290903]
[1773470581958,4.33229399,87.089,87.04,4.17490903]
[1773470583560,3.11664298,87.08,87.04,4.17490903]
[1773470583958,7.44893697,87.08,87.04,4.17490903]
[1773470584854,4.33229399,87.08,87.04,4.17490903]
[1773470585259,7.44893697,87.08,87.04,4.17490903]
[1773470587160,4.33229399,87.08,87.04,4.17490903]
[1773470587858,3.11664298,87.09,87.04,4.17490903]
[1773470587859,4.33229399,87.093,87.041,4.21556427]
[1773470588253,3.11664298,87.09,87.041,4.21556427]
[1773470589056,7.44893697,87.09,87.041,4.21556427]
[1773470589460,4.33229399,87.089,87.041,4.21556427]
[1773470589666,4.33229399,87.089,87.044,10.337]
[1773470589862,4.33229399,87.103,87.045,4.21556427]
[1773470590063,4.33229399,87.099,87.045,4.21556427]
[1773470590558,9.2567277,87.115,87.045,4.21556427]
[1773470590559,4.33229399,87.089,87.045,4.21556427]
[1773470592370,4.33229399,87.089,87.046,10.337]